bitfinex-derivatives/quotes_ETHF0:USTF0_20241004
["timestamp","ask_amount","ask_price","bid_price","bid_amount"]
[1728011209166,1.52,2367.8,2367.7,1.97362471]
[1728011209368,1.52,2367.8,2367.7,1.97366591]
[1728011209571,1.52,2367.8,2367.6,2.50125171]
[1728011209774,1.52,2367.8,2367.6,2.83915171]
[1728011210269,1.52,2367.8,2367.7,0.33789]
[1728011210970,1.52,2367.8,2367.7,1.97364942]
[1728011211566,1.52,2367.8,2367.7,1.63575942]
[1728011212269,1.52,2367.8,2367.7,1.97364942]
[1728011212573,1.52,2367.8,2367.7,1.63575942]
[1728011212770,1.52,2367.8,2367.6,2.83915171]
[1728011213568,1.52,2367.8,2367.7,1.63578878]
[1728011213877,1.52,2367.8,2367.7,1.63579182]
[1728011214173,1.52,2367.8,2367.6,2.83915171]
[1728011215076,1.52,2367.8,2367.7,1.63582404]
[1728011215477,1.52,2367.8,2367.6,2.83915171]
[1728011217880,1.52,2367.8,2367.7,1.10818676]
[1728011218680,1.52,2367.8,2367.6,1.95408676]
[1728011218881,1.52,2367.7,2367.6,1.95408676]
[1728011219876,1.52,2367.7,2367.6,0.4244]
[1728011220078,1.52,2367.7,2367.6,0.8229]
[1728011224776,1.52,2367.7,2367.5,0.4063]
[1728011224982,1.52,2367.7,2367.5,1.2584]
[1728011230689,3.2078,2367.6,2367.5,1.2584]
[1728011232287,4.7278,2367.6,2367.5,1.2584]
[1728011235303,2.855,2367.8,2367.5,1.2584]
[1728011235697,1.52,2367.6,2367.5,1.2584]
[1728011238801,1.52,2367.6,2367.5,1.59632]
[1728011239103,1.52,2367.7,2367.5,5.82032]
[1728011239304,1.52,2367.7,2367.5,1.59632]
[1728011239804,3.2078,2367.9,2367.6,0.3379]
[1728011239999,4.7278,2367.9,2367.6,0.3379]
[1728011241403,4.7278,2367.9,2367.5,2.70449676]
[1728011241603,4.7278,2367.9,2367.5,1.2584]
[1728011241805,1.52,2367.8,2367.6,0.3379]
[1728011244398,1.52,2367.7,2367.5,1.2584]
[1728011245503,1.85789,2367.7,2367.5,1.2584]
[1728011245708,3.2078,2367.6,2367.5,1.2584]
[1728011248504,1.52,2367.7,2367.5,1.2584]
[1728011248708,3.2078,2367.6,2367.5,1.2584]
[1728011253007,1.52,2367.7,2367.5,1.2584]
[1728011253408,3.2078,2367.6,2367.5,1.2584]
[1728011257308,4.7278,2367.6,2367.5,1.2584]
[1728011259512,3.2078,2367.6,2367.5,1.2584]
[1728011259815,4.7278,2367.6,2367.5,1.2584]
[1728011262615,3.2078,2367.6,2367.5,1.2584]
[1728011262816,4.7278,2367.6,2367.5,1.2584]
[1728011266815,5.06571,2367.6,2367.5,0.4063]
[1728011267015,5.06571,2367.6,2367.3,0.8536]
[1728011267225,1.52,2367.4,2367.3,0.8536]
[1728011267612,3.2078,2367.6,2367.3,0.8536]
[1728011267818,1.52,2367.4,2367.3,0.8536]
[1728011268216,1.52,2367.4,2367.3,0.4282]
[1728011268718,0.33801,2366.9,2366.5,1.20618676]
[1728011268921,4.5388,2366.8,2366.6,1.2263]
[1728011269117,1.52,2366.7,2366.4,1.10818676]
[1728011269311,0.33809,2366.4,2366.2,0.4151]
[1728011269522,1.52,2366.3,2366.2,0.4151]
[1728011269922,5.7464,2366.3,2366.0,0.4074]
[1728011270118,3.54587,2366.5,2366.0,0.4074]
[1728011270119,1.52,2366.1,2366.0,0.4074]
[1728011270324,4.7278,2366.1,2365.9,0.4151]
[1728011272123,4.84677818,2366.1,2365.9,0.4151]
[1728011272826,3.2078,2366.1,2365.9,0.4151]
[1728011273021,1.326,2366.0,2365.9,0.75325]
[1728011273326,3.2078,2366.1,2366.0,0.33814]
[1728011275123,1.326,2366.4,2366.2,0.3381]
[1728011275422,2.846,2366.4,2366.2,0.3381]
[1728011276721,2.846,2366.4,2366.3,0.33809]
[1728011277318,1.52,2366.4,2366.3,0.33809]
[1728011277921,1.52,2366.4,2366.0,1.52]
[1728011278429,1.52,2366.4,2366.2,0.33809]
[1728011280621,3.54584,2366.7,2366.4,0.33808]
[1728011280622,2.846,2366.6,2366.4,0.33808]
[1728011280826,2.846,2366.6,2366.5,0.8171]
[1728011282721,2.846,2366.6,2366.5,0.3934]
[1728011283728,7.0716,2366.6,2366.5,0.3934]
[1728011284026,7.0716,2366.6,2366.2,0.4237]
[1728011284229,1.52,2366.4,2366.2,0.8106]
[1728011284830,1.52,2366.4,2366.2,1.1487]
[1728011285521,1.52,2366.5,2366.3,0.33809]
[1728011285718,1.52,2366.5,2366.2,1.1487]
[1728011286125,1.52,2366.5,2366.2,0.8106]
[1728011286325,1.52,2366.5,2366.3,0.33809]
[1728011288234,1.326,2366.6,2366.5,0.33806]
[1728011288529,1.326,2366.6,2366.3,0.33808]
[1728011288530,1.52,2366.6,2366.3,0.33808]
[1728011289228,1.52,2366.4,2366.2,0.8106]
[1728011289724,1.52,2366.4,2366.2,1.1487]
[1728011290532,1.52,2366.4,2366.3,0.33809]
[1728011290832,1.52,2366.4,2366.2,1.1487]
[1728011291626,1.52,2366.4,2366.2,0.8106]
[1728011291820,1.52,2366.4,2366.2,1.1487]
[1728011294839,1.52,2366.4,2366.3,0.33809]
[1728011297134,1.52,2366.4,2366.2,0.8106]
[1728011297436,1.52,2366.4,2366.2,1.1487]
[1728011297635,1.52,2366.4,2366.3,0.33809]
[1728011300240,1.52,2366.4,2366.2,0.8106]
[1728011300538,1.52,2366.4,2366.2,1.1487]
[1728011303245,1.52,2366.4,2366.2,0.8106]
[1728011303440,1.52,2366.4,2366.3,0.33809]
[1728011307339,1.52,2366.4,2366.2,1.1487]
[1728011308343,1.52,2366.4,2366.2,0.8106]
[1728011308547,1.52,2366.4,2366.2,1.1487]
[1728011309638,1.9376,2366.4,2366.2,1.1487]
[1728011310036,1.9376,2366.4,2366.2,0.8106]
[1728011311143,1.9376,2366.4,2366.2,1.1487]
[1728011311347,1.9376,2366.4,2366.2,0.8106]
[1728011311543,1.52,2366.3,2366.2,0.725]
[1728011311743,1.52,2366.3,2366.2,0.3869]
[1728011312246,1.52,2366.3,2366.0,0.4157]
[1728011312448,1.52,2366.3,2366.0,0.8338]
[1728011312641,1.52,2366.1,2366.0,1.17193]
[1728011312845,1.52,2366.1,2366.0,0.8338]
[1728011313351,1.52,2366.1,2366.0,1.17194]
[1728011313745,1.52,2366.1,2366.0,0.8338]
[1728011314052,1.52,2366.1,2366.0,1.17194]
[1728011314745,0.98489,2366.2,2366.0,0.8338]
[1728011315146,0.98489,2366.2,2366.1,0.33812]
[1728011315456,2.843,2366.3,2366.1,0.33812]
[1728011317358,1.52,2366.3,2366.1,0.33812]
[1728011317550,2.843,2366.3,2366.1,0.33812]
[1728011318357,2.843,2366.3,2366.0,2.28011676]
[1728011319057,1.52,2366.3,2366.2,0.33811]
[1728011319255,4.7278,2366.5,2366.2,0.33811]
[1728011319449,1.323,2366.4,2366.3,0.74488]
[1728011319659,1.323,2366.4,2366.3,0.4068]
[1728011320159,1.323,2366.4,2366.3,1.13759]
[1728011320353,4.7278,2366.5,2366.3,1.13759]
[1728011320552,4.7278,2366.5,2366.4,0.4267]
[1728011322561,1.9392,2366.8,2366.5,0.33806]
[1728011322855,1.323,2366.7,2366.5,0.33806]
[1728011323056,1.9392,2366.8,2366.6,0.4235]
[1728011323365,1.323,2366.7,2366.6,0.4235]
[1728011323756,3.2078,2366.9,2366.6,0.76154]
[1728011323954,1.323,2366.8,2366.7,0.4183]
[1728011324460,3.2078,2366.9,2366.7,0.4183]
[1728011325053,4.7278,2366.9,2366.7,0.4183]
[1728011325465,4.7278,2366.9,2366.7,0.75633]
[1728011325855,3.2078,2366.9,2366.7,0.75633]
[1728011326055,1.323,2367.1,2366.8,0.33801]
[1728011326265,1.323,2367.1,2366.9,0.3944]
[1728011327263,1.52,2367.2,2366.9,0.3944]
[1728011327658,1.323,2367.3,2366.9,0.3944]
[1728011327862,1.52,2367.2,2366.9,0.3944]
[1728011329155,0.33796,2367.3,2366.9,0.3944]
[1728011329361,1.85796,2367.3,2366.9,0.3944]
[1728011330758,0.33796,2367.3,2367.1,1.52]
[1728011331355,0.33796,2367.3,2367.2,0.4233]
[1728011333164,1.52,2367.3,2366.7,0.4183]
[1728011333363,1.52,2367.3,2366.8,1.9227]
[1728011333364,0.33798,2367.1,2366.8,1.9227]
[1728011334561,0.96137,2367.2,2366.8,1.9227]
[1728011334764,1.85798,2367.1,2366.6,0.33805]
[1728011334962,1.85798,2367.1,2366.6,0.74075]
[1728011334963,2.26168,2367.1,2366.6,0.74075]
[1728011335160,2.26168,2367.1,2366.7,1.85803]
[1728011335161,0.4037,2367.1,2366.7,1.85803]
[1728011335358,0.74168,2367.1,2366.7,1.52]
[1728011336956,0.74168,2367.1,2366.8,0.4108]
[1728011337253,0.4037,2367.1,2366.8,0.4108]
[1728011337457,0.74168,2367.1,2366.8,0.4108]
[1728011337961,0.4037,2367.1,2366.8,0.4108]
[1728011338664,0.4037,2367.1,2366.9,0.4066]
[1728011340464,0.3871,2367.2,2366.9,2.26461]
[1728011340658,1.7051,2367.2,2367.0,0.4162]
[1728011342375,0.3871,2367.2,2367.0,0.4162]
[1728011342766,0.3871,2367.2,2367.0,1.9362]
[1728011342969,1.318,2367.4,2367.1,0.33798]
[1728011343173,0.8441,2367.5,2367.2,0.4134]
[1728011343376,2.1621,2367.5,2367.2,0.8241]
[1728011343666,0.8441,2367.5,2367.2,2.3441]
[1728011343877,1.7355,2367.5,2367.2,2.3441]
[1728011344671,0.4175,2367.5,2367.4,1.52]
[1728011344875,4.86371,2367.6,2367.4,1.52]
[1728011345165,4.5258,2367.6,2367.4,1.52]
[1728011345374,4.86371,2367.6,2367.4,1.52]
[1728011345567,4.5258,2367.6,2367.4,1.52]
[1728011345761,4.5258,2367.6,2367.5,0.3969]
[1728011346668,4.94818,2367.6,2367.4,1.52]
[1728011347769,4.5258,2367.6,2367.4,1.52]
[1728011347974,4.94819,2367.6,2367.4,1.52]
[1728011348278,4.5258,2367.6,2367.4,1.52]
[1728011348969,4.94819,2367.6,2367.4,1.52]
[1728011349477,3.2078,2367.6,2367.4,1.52]
[1728011349678,4.5258,2367.6,2367.4,1.52]
[1728011349975,6.0458,2367.6,2367.3,0.3969]
[1728011350370,6.46819,2367.6,2367.3,0.3969]
[1728011350776,6.0458,2367.6,2367.3,0.3969]
[1728011351572,6.46819,2367.6,2367.3,0.3969]
[1728011351767,6.0458,2367.6,2367.3,0.3969]
[1728011352382,4.5258,2367.6,2367.3,1.9169]
[1728011353771,1.318,2367.6,2367.3,1.9169]
[1728011353979,1.318,2367.6,2367.4,0.8621]
[1728011354179,1.26608,2367.7,2367.4,0.8621]
[1728011354386,1.318,2367.6,2367.4,0.8621]
[1728011356085,1.74039,2367.6,2367.4,0.8621]
[1728011356285,1.318,2367.6,2367.4,0.8621]
[1728011356579,1.318,2367.6,2367.4,1.2527]
[1728011359088,1.318,2367.6,2367.4,0.8621]
[1728011359089,0.4224,2367.5,2367.4,0.8621]
[1728011359582,6.4682,2367.6,2367.4,0.8621]
[1728011360285,0.4224,2367.5,2367.4,0.8621]
[1728011363289,6.4682,2367.6,2367.4,0.8621]
[1728011363491,6.0458,2367.6,2367.4,0.8621]
[1728011363686,6.4682,2367.6,2367.4,0.8621]
[1728011364287,6.0458,2367.6,2367.4,0.8621]
[1728011364479,0.4224,2367.5,2367.4,0.8621]
[1728011366275,6.0458,2367.6,2367.4,0.8621]
[1728011366485,6.46819,2367.6,2367.4,0.8621]
[1728011366991,2.838,2367.6,2367.3,0.4216]
[1728011367282,0.42241,2367.5,2367.3,0.4216]
[1728011368385,3.26039,2367.6,2367.3,0.4216]
[1728011368679,3.26039,2367.6,2367.4,1.2619]
[1728011369489,1.74039,2367.6,2367.4,1.2619]
[1728011372490,1.74039,2367.6,2367.4,0.8616]
[1728011373992,1.9424,2367.5,2367.4,0.8616]
[1728011374289,6.4024,2367.5,2367.4,0.8616]
[1728011378286,6.4024,2367.5,2367.4,0.64479159]
[1728011378591,7.23427187,2367.5,2367.4,0.64479159]
[1728011379596,13.35420202,2367.5,2367.4,0.64479159]
[1728011379899,0.42245,2367.3,2367.0,1.2143]
[1728011384301,0.42245,2367.3,2367.0,1.8583]
[1728011387093,0.42246,2367.2,2367.0,1.8583]
[1728011388498,0.42245,2367.3,2367.0,1.8583]
[1728011389297,3.6225,2367.4,2367.0,1.8583]
[1728011389503,0.42246,2367.2,2367.0,1.8583]
[1728011390390,3.6225,2367.4,2367.0,1.8583]
[1728011390701,0.42245,2367.3,2367.0,1.8583]
[1728011392701,0.42246,2367.2,2367.0,1.8583]
[1728011393499,3.6225,2367.4,2367.0,1.8583]
[1728011393700,1.73046,2367.2,2367.0,1.8583]
[1728011395703,1.308,2367.2,2367.0,1.8583]
[1728011396100,1.73046,2367.2,2367.0,1.8583]
[1728011397299,1.308,2367.2,2367.0,1.8583]
[1728011397803,1.73046,2367.2,2367.0,1.8583]
[1728011398210,1.308,2367.2,2367.0,1.8583]
[1728011398814,3.2078,2367.4,2367.1,1.52]
[1728011399109,4.5158,2367.4,2367.1,1.52]
[1728011399297,4.5158,2367.4,2367.2,1.52]
[1728011399701,4.5158,2367.4,2367.3,0.393]
[1728011400811,3.2078,2367.4,2367.3,0.393]
[1728011401004,3.63022,2367.4,2367.3,0.393]
[1728011401203,3.2078,2367.4,2367.3,0.393]
[1728011403511,3.2078,2367.4,2367.3,6.55944]
[1728011403709,0.098,2367.8,2367.3,12.137]
[1728011403913,0.098,2367.8,2367.6,1.52]
[1728011403914,0.42236,2367.8,2367.6,1.52]
[1728011404410,1.5257619,2368.0,2367.6,1.52]
[1728011404609,0.42234,2367.9,2367.6,1.52]
[1728011405405,1.8500819,2368.0,2367.6,1.52]
[1728011405609,0.42233,2367.9,2367.6,1.52]
[1728011406104,1.52,2367.9,2367.5,1.52]
[1728011406305,0.42237,2367.8,2367.4,1.52]
[1728011406505,0.3954,2367.8,2367.3,1.52]
[1728011406710,0.4224,2367.6,2367.3,1.52]
[1728011406912,0.42239,2367.6,2367.4,0.8205]
[1728011408012,0.8118,2367.8,2367.4,0.8205]
[1728011408208,0.42238,2367.7,2367.4,0.8205]
[1728011408404,0.8118,2367.8,2367.4,0.8205]
[1728011408725,2.1198,2367.8,2367.4,2.3405]
[1728011408915,2.54216,2367.8,2367.4,2.3405]
[1728011409215,2.54216,2367.8,2366.8,3.2078]
[1728011409216,0.42245,2367.3,2366.8,3.2078]
[1728011409414,1.308,2367.2,2367.0,1.2519]
[1728011409812,3.2078,2367.3,2367.1,1.52]
[1728011410010,1.308,2367.2,2367.1,1.52]
[1728011410413,1.308,2367.2,2367.1,6.3878]
[1728011410618,0.386,2367.4,2367.1,2.163]
[1728011410818,1.308,2367.4,2367.3,1.52]
[1728011411020,1.308,2367.6,2367.3,1.52]
[1728011411219,1.308,2367.6,2367.4,1.2519]
[1728011412612,1.308,2367.6,2367.5,1.52]
[1728011413522,1.308,2367.7,2367.5,1.52]
[1728011416625,4.5158,2367.8,2367.5,1.52]
[1728011416822,4.93816,2367.8,2367.5,1.52]
[1728011417828,4.5158,2367.8,2367.5,1.52]
[1728011418227,0.42238,2367.7,2367.5,1.52]
[1728011418619,0.42238,2367.7,2367.4,1.2519]
[1728011419820,6.0358,2367.8,2367.4,1.2519]
[1728011420024,0.42237,2367.7,2367.4,1.2519]
[1728011421633,6.0358,2367.8,2367.4,0.4283]
[1728011421634,0.42239,2367.6,2367.4,0.4283]
[1728011421837,0.4224,2367.5,2367.4,0.4283]
[1728011422036,0.8226,2367.5,2367.4,0.4283]
[1728011425732,4.5158,2367.8,2367.4,6.1723]
[1728011425935,5.35775,2367.8,2367.5,0.4045]
[1728011426123,4.9354,2367.8,2367.5,0.4045]
[1728011426331,4.9354,2367.8,2367.6,0.4054]
[1728011426929,5.35776,2367.8,2367.6,0.4054]
[1728011428132,5.35776,2367.8,2367.5,0.4045]
[1728011431427,3.6274,2367.8,2367.5,0.4045]
[1728011431625,4.9304,2367.8,2367.5,0.4045]
[1728011433734,3.6274,2367.8,2367.5,0.4045]
[1728011434636,0.4196,2367.8,2367.6,0.4234]
[1728011434836,0.84195,2367.8,2367.6,0.4234]
[1728011436642,0.84195,2367.8,2367.4,0.4283]
[1728011436643,0.42237,2367.7,2367.4,0.4283]
[1728011436834,0.4201,2367.6,2367.4,0.4283]
[1728011437235,0.4259,2367.5,2367.4,0.4283]
[1728011442252,0.4259,2367.5,2367.3,1.9437]
[1728011442459,0.8187,2367.5,2367.3,1.9437]
[1728011445858,0.8187,2367.5,2367.3,0.4237]
[1728011447552,0.8187,2367.5,2367.4,0.6414]
[1728011448258,4.5108,2367.9,2367.4,2.1614]
[1728011448560,0.3892,2367.8,2367.4,2.58381]
[1728011448763,1.6922,2367.8,2367.4,2.58381]
[1728011449959,1.6922,2367.8,2367.4,2.1614]
[1728011450457,1.6922,2367.8,2367.4,2.58381]
[1728011450658,1.6922,2367.8,2367.4,2.1614]
[1728011451956,1.6922,2367.8,2367.4,2.58382]
[1728011453656,1.6862,2367.8,2367.4,2.58382]
[1728011458559,4.894,2367.8,2367.4,2.58382]
[1728011459456,1.6862,2367.8,2367.4,2.58382]
[1728011459856,4.894,2367.8,2367.4,2.58382]
[1728011461161,5.31635,2367.8,2367.4,2.1614]
[1728011462166,4.894,2367.8,2367.4,2.1614]
[1728011463162,4.894,2367.8,2367.4,2.58382]
[1728011464768,4.894,2367.8,2367.4,2.1614]
[1728011464953,5.31635,2367.8,2367.4,2.1614]
[1728011465355,4.894,2367.8,2367.4,2.1614]
[1728011465565,4.894,2367.8,2367.4,1.94242]
[1728011466164,6.414,2367.8,2367.3,1.53188676]
[1728011466464,1.25660663,2367.7,2367.3,0.4237]
[1728011466765,0.3927,2367.6,2367.3,0.4237]
[1728011466959,0.4105,2367.5,2367.3,0.4237]
[1728011467163,0.7972,2367.5,2367.3,0.4237]
[1728011467364,0.7972,2367.5,2367.4,0.6407]
[1728011478364,5.4436,2367.5,2367.4,0.6407]
[1728011478569,8.6514,2367.5,2367.4,0.6407]
[1728011479070,9.48540575,2367.5,2367.4,0.6407]
[1728011480775,9.06300575,2367.5,2367.4,0.6407]
[1728011481562,5.85520575,2367.5,2367.4,0.6407]
[1728011481777,6.39609796,2367.5,2367.4,0.6407]
[1728011482168,5.56209221,2367.5,2367.4,0.6407]
[1728011483070,7.08209221,2367.5,2367.4,0.6407]
[1728011483270,7.91489865,2367.5,2367.4,0.6407]
[1728011483472,7.08209221,2367.5,2367.4,0.6407]
[1728011485369,6.65969221,2367.5,2367.4,0.6407]
[1728011485574,0.91569221,2367.5,2367.4,0.6407]
[1728011485777,5.13969221,2367.5,2367.4,0.6407]
[1728011487176,0.91569221,2367.5,2367.4,0.6407]
[1728011488976,1.33809221,2367.5,2367.4,0.6407]
[1728011490576,5.56209221,2367.5,2367.4,0.6407]
[1728011490777,1.33809221,2367.5,2367.4,0.6407]
[1728011491376,5.56209221,2367.5,2367.4,0.6407]
[1728011494487,13.08209221,2367.5,2367.4,0.6407]
[1728011494686,13.91515239,2367.5,2367.4,0.6407]
[1728011494887,0.4225,2367.0,2366.8,0.4158]
[1728011495080,1.693,2366.9,2366.8,0.4158]
[1728011503481,0.098,2367.4,2366.8,6.1606]
[1728011503687,1.292,2367.3,2367.0,1.52]
[1728011503985,1.71444,2367.3,2367.1,0.8155]
[1728011504181,1.71444,2367.3,2367.1,1.2109]
[1728011504385,1.292,2367.3,2367.1,1.2109]
[1728011504587,1.71445,2367.3,2367.1,1.2109]
[1728011505185,1.292,2367.3,2367.1,1.2109]
[1728011506992,1.71444,2367.3,2367.1,1.2109]
[1728011508500,0.53990689,2367.4,2367.1,1.2109]
[1728011508698,1.292,2367.3,2367.1,1.2109]
[1728011509893,0.96233689,2367.4,2367.1,1.2109]
[1728011509894,0.4211,2367.4,2367.2,1.52]
[1728011510093,1.292,2367.3,2367.2,1.52]
[1728011513101,1.292,2367.3,2367.1,1.2109]
[1728011513800,1.71446,2367.3,2367.1,1.2109]
[1728011514001,2.14096,2367.3,2367.1,1.2109]
[1728011516800,1.7185,2367.3,2367.1,1.2109]
[1728011520706,1.292,2367.3,2367.1,1.2109]
[1728011521106,1.286,2367.3,2367.1,1.2109]
[1728011521513,3.73396443,2367.5,2367.2,5.7448]
[1728011521514,3.2078,2367.5,2367.2,5.7448]
[1728011521700,1.286,2367.6,2367.1,1.2109]
[1728011521900,1.70838,2367.6,2367.1,2.7309]
[1728011522210,1.94241,2367.5,2367.1,1.2109]
[1728011522515,1.286,2367.4,2367.1,1.2109]
[1728011522827,1.7055,2367.4,2367.1,1.2109]
[1728011523216,2.12793,2367.4,2367.1,1.2109]
[1728011523420,1.7055,2367.4,2367.1,1.2109]
[1728011525621,1.7055,2367.4,2367.1,0.785]
[1728011525924,2.12792,2367.4,2367.1,0.785]
[1728011528321,1.7055,2367.4,2367.1,0.785]
[1728011528524,2.2436393,2367.4,2367.1,0.785]
[1728011529522,1.8212193,2367.4,2367.1,0.785]
[1728011529722,3.3412193,2367.4,2367.1,0.785]
[1728011530516,3.7636393,2367.4,2367.1,0.785]
[1728011530713,3.7636393,2367.4,2366.8,0.407]
[1728011531026,3.7636493,2367.4,2366.9,0.8089]
[1728011531222,3.3412193,2367.4,2366.9,0.8089]
[1728011531524,1.52,2367.1,2366.5,1.52]
[1728011531730,1.2112,2367.0,2366.6,1.2092]
[1728011532125,1.2112,2367.0,2366.6,2.7292]
[1728011532832,1.2112,2367.0,2366.8,1.52]
[1728011533033,1.286,2367.0,2366.9,1.52]
[1728011533329,1.286,2367.0,2366.9,1.9184]
[1728011533522,1.286,2367.2,2366.9,1.9184]
[1728011533715,1.286,2367.2,2367.1,1.52]
[1728011533922,1.286,2367.2,2367.0,0.8325]
[1728011534721,0.4095,2367.3,2367.0,0.8325]
[1728011534722,0.4095,2367.3,2367.1,1.52]
[1728011535027,1.6955,2367.3,2367.1,1.52]
[1728011535233,1.6955,2367.3,2367.2,0.3967]
[1728011537934,0.4095,2367.3,2367.2,1.9167]
[1728011538131,1.286,2367.4,2367.2,1.9167]
[1728011539127,0.098,2367.7,2367.3,1.52]
[1728011539327,3.2078,2367.9,2367.6,1.52]
[1728011539328,4.5918,2367.9,2367.6,1.52]
[1728011539534,4.4938,2367.9,2367.7,0.4136]
[1728011539829,4.4938,2367.9,2367.8,0.4172]
[1728011539830,4.4878,2367.9,2367.8,0.4172]
[1728011540030,3.2078,2367.9,2367.8,0.4172]
[1728011540233,4.4878,2367.9,2367.8,0.4172]
[1728011542434,1.28,2367.9,2367.8,0.8339]
[1728011549945,1.6709,2368.0,2367.8,0.8339]
[1728011551049,2.09322,2368.0,2367.8,0.8339]
[1728011551255,2.09322,2368.0,2367.7,0.4136]
[1728011551256,0.42234,2367.9,2367.7,0.4136]
[1728011551448,0.81674,2367.9,2367.7,0.4136]
[1728011552054,0.42236,2367.8,2367.5,0.7791]
[1728011552254,0.42236,2367.8,2367.6,0.4276]
[1728011552451,0.4268,2367.7,2367.6,0.4276]
[1728011553055,0.4268,2367.7,2367.6,4.6508]
[1728011553452,0.4268,2367.7,2367.6,0.4276]
[1728011553945,3.2078,2367.9,2367.6,6.1708]
[1728011554144,3.6346,2367.9,2367.6,1.9476]
[1728011555652,0.4268,2367.9,2367.6,1.9476]
[1728011555955,0.4268,2367.9,2367.6,0.4276]
[1728011559745,0.84913,2367.9,2367.6,0.4276]
[1728011559950,0.4268,2367.9,2367.6,0.4276]
[1728011561057,0.84913,2367.9,2367.6,0.4276]
[1728011561447,0.4268,2367.9,2367.6,0.4276]
[1728011561653,4.7278,2367.7,2367.1,4.148]
[1728011561862,1.94241,2367.5,2367.1,0.4208]
[1728011562160,1.6991,2367.4,2367.1,0.4208]
[1728011562656,0.4152,2367.3,2367.1,0.4208]
[1728011565353,0.53294621,2367.3,2367.1,0.4208]
[1728011566856,0.4152,2367.3,2367.1,0.4208]
[1728011569356,0.4017,2367.2,2367.0,2.301]
[1728011570262,0.4017,2367.2,2367.1,0.3873]
[1728011572273,0.4152,2367.3,2367.1,1.9073]
[1728011575858,0.4152,2367.3,2367.1,1.52]
[1728011576063,0.4166,2367.2,2367.1,1.52]
[1728011581172,0.4166,2367.2,2367.0,2.7013]
[1728011581669,0.4152,2367.3,2367.0,2.7013]
[1728011581858,0.4152,2367.3,2367.0,3.12378]
[1728011582066,0.4152,2367.3,2367.0,2.7013]
[1728011582459,0.4152,2367.3,2367.0,3.12379]
[1728011582861,0.4152,2367.3,2367.0,2.7013]
[1728011592275,0.4152,2367.3,2367.0,1.1813]
[1728011592575,0.83764,2367.3,2367.0,1.1813]
[1728011592775,0.83764,2367.3,2367.0,0.7915]
[1728011592975,4.04544,2367.3,2367.0,0.3912]
[1728011593678,3.623,2367.3,2367.0,0.3912]
[1728011595277,3.623,2367.3,2367.0,2.33368]
[1728011595478,3.2078,2367.3,2367.1,0.42247]
[1728011595686,3.2078,2367.3,2367.2,0.4116]
[1728011595891,3.2078,2367.3,2367.2,0.8358]
[1728011597278,3.2078,2367.3,2367.0,0.3912]
[1728011597675,3.2078,2367.3,2367.0,0.7918]
[1728011598483,3.2078,2367.3,2367.0,1.21429]
[1728011600280,3.2078,2367.3,2367.0,0.7918]
[1728011600485,3.628,2367.3,2367.0,0.7918]
[1728011602187,0.4202,2367.3,2367.0,0.7918]
[1728011607886,5.2804,2367.4,2367.0,1.21429]
[1728011608083,5.2804,2367.4,2367.1,0.3971]
[1728011608381,3.6115,2367.4,2367.1,0.3971]
[1728011608581,3.6115,2367.4,2367.1,1.9171]
[1728011611089,3.6115,2367.4,2367.1,0.3971]
[1728011612288,1.52,2367.2,2366.8,1.10818676]
[1728011612494,6.8241,2367.1,2366.8,0.4225]
[1728011613489,7.24658,2367.1,2366.7,0.7876]
[1728011614491,6.8241,2367.1,2366.7,0.7876]
[1728011614698,7.24657,2367.1,2366.7,0.7876]
[1728011617093,0.42249,2367.0,2366.7,0.4004]
[1728011617293,0.3989,2366.9,2366.7,0.4004]
[1728011617488,0.3989,2366.9,2366.6,0.4082]
[1728011617694,0.4119,2366.8,2366.6,0.4082]
[1728011617894,0.397,2366.7,2366.6,0.4082]
[1728011619395,0.397,2366.7,2366.5,0.4238]
[1728011619803,0.397,2366.7,2366.4,0.8308]
[1728011620493,1.917,2366.7,2366.4,0.8308]
[1728011620693,1.917,2366.7,2366.2,3.2078]
[1728011620694,1.52,2366.5,2366.2,3.2078]
[1728011621000,1.6843,2366.4,2366.2,3.2078]
[1728011621196,0.411,2366.3,2366.2,3.2078]
[1728011623599,0.411,2366.3,2366.1,0.8361]
[1728011629098,1.52,2366.2,2366.1,0.8361]
[1728011630408,0.411,2366.3,2366.1,0.8361]
[1728011630705,0.411,2366.3,2366.1,2.3561]
[1728011631000,0.411,2366.3,2366.1,0.8361]
[1728011631996,4.13914592,2366.4,2366.1,0.8361]
[1728011632208,1.265,2366.3,2366.1,0.8361]
[1728011641405,2.785,2366.3,2366.1,0.8361]
[1728011641608,1.52,2366.2,2366.1,0.8361]
[1728011642005,1.52,2366.2,2366.1,0.4122]
[1728011642206,1.265,2366.3,2366.1,0.4122]
[1728011642513,1.265,2366.3,2366.1,0.8162]
[1728011642711,3.20763,2366.3,2365.6,7.77853]
[1728011642908,1.52,2366.1,2365.7,1.2011]
[1728011643413,0.3936,2366.0,2365.7,1.2011]
[1728011643613,0.3936,2366.0,2365.8,1.52]
[1728011644407,1.265,2366.2,2365.9,1.94269]